[Event "Titled Tuesday Blitz May 16 Late 2023"]
[White "Petrovic, Aleksa"]
[Black "Carrasco Miranda, Andres"]
[WhiteFideId "967629"]
[BlackFideId "3405990"]
[WhiteElo "2309"]
[BlackElo "2183"]
[Result "1/2-1/2"]
[Round "11"]
[TimeControl "180+2"]
[Date "2023.05.16"]
[WhiteClock "0:00:03"]
[BlackClock "0:00:39"]

1. d4 {[%clk 0:03:00]}  Nf6 {[%clk 0:02:59]} 2. c4 {[%clk 0:03:00]}  g6 {[%clk 0:02:59]} 3. f3 {[%clk 0:02:56]}  d5 {[%clk 0:02:59]} 4. cxd5 {[%clk 0:02:55]}  Nxd5 {[%clk 0:03:00]} 5. e4 {[%clk 0:02:55]}  Nb6 {[%clk 0:03:00]} 6. Nc3 {[%clk 0:02:54]}  Bg7 {[%clk 0:03:01]} 7. Be3 {[%clk 0:02:54]}  O-O {[%clk 0:03:01]} 8. Qd2 {[%clk 0:02:54]}  e5 {[%clk 0:03:02]} 9. dxe5 {[%clk 0:02:51]}  Bxe5 {[%clk 0:03:01]} 10. O-O-O {[%clk 0:02:47]}  Qxd2+ {[%clk 0:03:00]} 11. Rxd2 {[%clk 0:02:48]}  Nc6 {[%clk 0:03:00]} 12. Bb5 {[%clk 0:02:43]}  Nb4 {[%clk 0:03:00]} 13. Bc5 {[%clk 0:02:40]}  a6 {[%clk 0:02:41]} 14. Bxb4 {[%clk 0:02:35]}  axb5 {[%clk 0:02:41]} 15. Bxf8 {[%clk 0:02:35]}  Kxf8 {[%clk 0:02:41]} 16. Kb1 {[%clk 0:02:25]}  Be6 {[%clk 0:02:38]} 17. Nge2 {[%clk 0:02:18]}  b4 {[%clk 0:02:33]} 18. Nd5 {[%clk 0:02:18]}  Nxd5 {[%clk 0:02:33]} 19. exd5 {[%clk 0:02:18]}  Bf5+ {[%clk 0:02:34]} 20. Ka1 {[%clk 0:02:14]}  b3 {[%clk 0:02:34]} 21. Nc3 {[%clk 0:02:06]}  b5 {[%clk 0:02:30]} 22. g4 {[%clk 0:01:18]}  b4 {[%clk 0:02:25]} 23. Ne4 {[%clk 0:00:42]}  Rxa2+ {[%clk 0:02:07]} 24. Kb1 {[%clk 0:00:41]}  Bxe4+ {[%clk 0:02:05]} 25. fxe4 {[%clk 0:00:42]}  Ke7 {[%clk 0:01:55]} 26. Rf1 {[%clk 0:00:37]}  f6 {[%clk 0:01:55]} 27. Rf3 {[%clk 0:00:36]}  Bc3 {[%clk 0:01:26]} 28. Rdf2 {[%clk 0:00:26]}  Bd4 {[%clk 0:01:26]} 29. Rxb3 {[%clk 0:00:25]}  Ra4 {[%clk 0:01:18]} 30. Rc2 {[%clk 0:00:20]}  Be5 {[%clk 0:01:16]} 31. Rc4 {[%clk 0:00:20]}  Bd6 {[%clk 0:01:16]} 32. Rh3 {[%clk 0:00:17]}  h5 {[%clk 0:01:06]} 33. gxh5 {[%clk 0:00:17]}  gxh5 {[%clk 0:01:07]} 34. Rxh5 {[%clk 0:00:17]}  Kf7 {[%clk 0:01:07]} 35. Rh7+ {[%clk 0:00:15]}  Kg6 {[%clk 0:01:07]} 36. Rhxc7 {[%clk 0:00:16]}  Bxc7 {[%clk 0:01:07]} 37. Rxc7 {[%clk 0:00:17]}  b3 {[%clk 0:01:08]} 38. Re7 {[%clk 0:00:12]}  Rd4 {[%clk 0:01:03]} 39. Kc1 {[%clk 0:00:09]}  Rc4+ {[%clk 0:01:03]} 40. Kd1 {[%clk 0:00:07]}  Rc2 {[%clk 0:01:04]} 41. d6 {[%clk 0:00:07]}  Rxb2 {[%clk 0:00:55]} 42. d7 {[%clk 0:00:06]}  Rb1+ {[%clk 0:00:55]} 43. Kd2 {[%clk 0:00:06]}  b2 {[%clk 0:00:55]} 44. d8=Q {[%clk 0:00:05]}  Rd1+ {[%clk 0:00:55]} 45. Kxd1 {[%clk 0:00:05]}  b1=Q+ {[%clk 0:00:56]} 46. Kd2 {[%clk 0:00:05]}  Qb2+ {[%clk 0:00:56]} 47. Ke3 {[%clk 0:00:05]}  Qa3+ {[%clk 0:00:56]} 48. Kd4 {[%clk 0:00:04]}  Qb4+ {[%clk 0:00:55]} 49. Kd3 {[%clk 0:00:03]}  Qa3+ {[%clk 0:00:55]} 50. Kc4 {[%clk 0:00:03]}  Qa4+ {[%clk 0:00:53]} 51. Kc5 {[%clk 0:00:03]}  Qc2+ {[%clk 0:00:50]} 52. Kd6 {[%clk 0:00:03]}  Qd2+ {[%clk 0:00:50]} 53. Kc7 {[%clk 0:00:03]}  Qa5+ {[%clk 0:00:50]} 54. Kd7 {[%clk 0:00:04]}  Qa4+ {[%clk 0:00:43]} 55. Ke6 {[%clk 0:00:02]}  Qxe4+ {[%clk 0:00:41]} 56. Kd6 {[%clk 0:00:02]}  Qd4+ {[%clk 0:00:41]} 57. Kc7 {[%clk 0:00:02]}  Qa7+ {[%clk 0:00:39]} 58. Kc8 {[%clk 0:00:02]}  Qa8+ {[%clk 0:00:39]} 59. Kd7 {[%clk 0:00:03]}  Qa4+ {[%clk 0:00:38]} 60. Kd6 {[%clk 0:00:02]}  Qd4+ {[%clk 0:00:38]} 61. Kc7 {[%clk 0:00:03]}  Qa7+ {[%clk 0:00:38]} 62. Kc8 {[%clk 0:00:03]}  Qa8+ {[%clk 0:00:39]} 63. Kc7 {[%clk 0:00:03]}  Qa7+ {[%clk 0:00:39]} 1/2-1/2


[Site "https://www.chess.com"]

[Event "Titled Tuesday Blitz May 16 Late 2023"]
[White "lluiss"]
[Black "Pires, Marcos Vinicius Torsani"]
[BlackFideId "2118939"]
[WhiteElo "2301"]
[BlackElo "2273"]
[Result "0-1"]
[Round "11"]
[TimeControl "180+2"]
[Date "2023.05.16"]
[WhiteClock "0:00:28"]
[BlackClock "0:00:29"]

1. Nf3 {[%clk 0:03:00]}  Nf6 {[%clk 0:02:58]} 2. c4 {[%clk 0:03:00]}  g6 {[%clk 0:02:58]} 3. g3 {[%clk 0:02:59]}  Bg7 {[%clk 0:02:58]} 4. Bg2 {[%clk 0:02:59]}  O-O {[%clk 0:02:59]} 5. O-O {[%clk 0:02:58]}  d6 {[%clk 0:02:59]} 6. d4 {[%clk 0:02:58]}  Nc6 {[%clk 0:02:59]} 7. Nc3 {[%clk 0:02:57]}  e5 {[%clk 0:03:00]} 8. dxe5 {[%clk 0:02:57]}  dxe5 {[%clk 0:02:57]} 9. Bg5 {[%clk 0:02:56]}  Be6 {[%clk 0:02:49]} 10. Nd5 {[%clk 0:02:52]}  Bxd5 {[%clk 0:02:31]} 11. cxd5 {[%clk 0:02:52]}  Qxd5 {[%clk 0:02:14]} 12. Bxf6 {[%clk 0:02:11]}  Qxd1 {[%clk 0:02:12]} 13. Raxd1 {[%clk 0:02:09]}  Bxf6 {[%clk 0:02:11]} 14. Nd2 {[%clk 0:02:09]}  Rfd8 {[%clk 0:02:03]} 15. Bxc6 {[%clk 0:02:06]}  bxc6 {[%clk 0:02:03]} 16. b3 {[%clk 0:02:06]}  Rd5 {[%clk 0:01:56]} 17. Ne4 {[%clk 0:01:59]}  Be7 {[%clk 0:01:55]} 18. Nc3 {[%clk 0:01:56]}  Rd6 {[%clk 0:01:47]} 19. Rd3 {[%clk 0:01:45]}  Rxd3 {[%clk 0:01:45]} 20. exd3 {[%clk 0:01:45]}  Rd8 {[%clk 0:01:46]} 21. Rd1 {[%clk 0:01:43]}  f5 {[%clk 0:01:46]} 22. Kf1 {[%clk 0:01:42]}  Kf7 {[%clk 0:01:44]} 23. Ke2 {[%clk 0:01:42]}  Ke6 {[%clk 0:01:44]} 24. Na4 {[%clk 0:01:42]}  Bb4 {[%clk 0:01:39]} 25. Rc1 {[%clk 0:01:41]}  Kd5 {[%clk 0:01:31]} 26. Rc4 {[%clk 0:01:40]}  a5 {[%clk 0:01:26]} 27. f3 {[%clk 0:01:21]}  Re8 {[%clk 0:01:20]} 28. Ke3 {[%clk 0:01:21]}  h5 {[%clk 0:01:17]} 29. Nc3+ {[%clk 0:01:13]}  Kd6 {[%clk 0:01:08]} 30. Na4 {[%clk 0:01:06]}  Kd5 {[%clk 0:00:57]} 31. h3 {[%clk 0:01:06]}  Bf8 {[%clk 0:00:50]} 32. g4 {[%clk 0:01:01]}  Bh6+ {[%clk 0:00:48]} 33. Ke2 {[%clk 0:00:56]}  hxg4 {[%clk 0:00:46]} 34. hxg4 {[%clk 0:00:56]}  Bf4 {[%clk 0:00:47]} 35. Nc3+ {[%clk 0:00:46]}  Kd6 {[%clk 0:00:46]} 36. Ra4 {[%clk 0:00:46]}  Rh8 {[%clk 0:00:44]} 37. Rxa5 {[%clk 0:00:39]}  Rh2+ {[%clk 0:00:44]} 38. Kf1 {[%clk 0:00:39]}  Rc2 {[%clk 0:00:37]} 39. Ne2 {[%clk 0:00:38]}  Be3 {[%clk 0:00:34]} 40. gxf5 {[%clk 0:00:35]}  gxf5 {[%clk 0:00:34]} 41. Ra8 {[%clk 0:00:35]}  Ke7 {[%clk 0:00:31]} 42. Rh8 {[%clk 0:00:34]}  Rxa2 {[%clk 0:00:30]} 43. Rh7+ {[%clk 0:00:33]}  Kd6 {[%clk 0:00:30]} 44. Rh6+ {[%clk 0:00:28]}  Bxh6 {[%clk 0:00:29]} 0-1


[Site "https://www.chess.com"]

[Event "Titled Tuesday Blitz May 16 Late 2023"]
[White "Torres Dominguez, David"]
[Black "marik_spb"]
[WhiteFideId "2220857"]
[WhiteElo "1999"]
[BlackElo "2440"]
[Result "0-1"]
[Round "11"]
[TimeControl "180+2"]
[Date "2023.05.16"]
[WhiteClock "0:00:00"]
[BlackClock "0:00:06"]

1. e4 {[%clk 0:03:00]}  c6 {[%clk 0:02:59]} 2. Nf3 {[%clk 0:02:59]}  d5 {[%clk 0:03:00]} 3. d3 {[%clk 0:02:59]}  dxe4 {[%clk 0:03:00]} 4. dxe4 {[%clk 0:02:58]}  Qxd1+ {[%clk 0:03:01]} 5. Kxd1 {[%clk 0:02:58]}  Nd7 {[%clk 0:02:53]} 6. Be3 {[%clk 0:02:50]}  Ngf6 {[%clk 0:02:52]} 7. Nbd2 {[%clk 0:02:46]}  e5 {[%clk 0:02:47]} 8. h3 {[%clk 0:02:43]}  Bd6 {[%clk 0:02:47]} 9. c3 {[%clk 0:02:36]}  Bc7 {[%clk 0:02:47]} 10. Bd3 {[%clk 0:02:33]}  Nf8 {[%clk 0:02:35]} 11. Ke2 {[%clk 0:02:32]}  Ne6 {[%clk 0:02:35]} 12. g3 {[%clk 0:02:27]}  Nd7 {[%clk 0:02:34]} 13. a4 {[%clk 0:02:22]}  Ndc5 {[%clk 0:02:28]} 14. Bc2 {[%clk 0:02:20]}  Ke7 {[%clk 0:02:22]} 15. b4 {[%clk 0:02:17]}  Nd7 {[%clk 0:02:22]} 16. a5 {[%clk 0:02:13]}  f6 {[%clk 0:02:22]} 17. Rhd1 {[%clk 0:02:05]}  Rd8 {[%clk 0:02:20]} 18. h4 {[%clk 0:02:02]}  c5 {[%clk 0:02:13]} 19. Nc4 {[%clk 0:01:54]}  b5 {[%clk 0:01:53]} 20. axb6 {[%clk 0:01:51]}  Nxb6 {[%clk 0:01:50]} 21. Nxb6 {[%clk 0:01:40]}  Bxb6 {[%clk 0:01:49]} 22. Rxd8 {[%clk 0:01:27]}  Kxd8 {[%clk 0:01:50]} 23. Nd2 {[%clk 0:01:25]}  Bb7 {[%clk 0:01:19]} 24. Nc4 {[%clk 0:01:24]}  Kc7 {[%clk 0:01:07]} 25. b5 {[%clk 0:01:13]}  Rc8 {[%clk 0:01:00]} 26. Bb3 {[%clk 0:01:00]}  Re8 {[%clk 0:00:49]} 27. f3 {[%clk 0:00:59]}  Re7 {[%clk 0:00:39]} 28. Na5 {[%clk 0:00:55]}  Ba8 {[%clk 0:00:25]} 29. Bxe6 {[%clk 0:00:49]}  Rxe6 {[%clk 0:00:24]} 30. c4 {[%clk 0:00:46]}  Rd6 {[%clk 0:00:19]} 31. Nb3 {[%clk 0:00:44]}  f5 {[%clk 0:00:14]} 32. exf5 {[%clk 0:00:41]}  e4 {[%clk 0:00:14]} 33. Bf4 {[%clk 0:00:26]}  Kd7 {[%clk 0:00:14]} 34. Bxd6 {[%clk 0:00:25]}  Kxd6 {[%clk 0:00:15]} 35. Rd1+ {[%clk 0:00:22]}  Ke7 {[%clk 0:00:13]} 36. f4 {[%clk 0:00:21]}  Bb7 {[%clk 0:00:13]} 37. Ke3 {[%clk 0:00:21]}  h5 {[%clk 0:00:12]} 38. Rd2 {[%clk 0:00:17]}  Kf6 {[%clk 0:00:09]} 39. Rd7 {[%clk 0:00:15]}  Bc8 {[%clk 0:00:08]} 40. Rd6+ {[%clk 0:00:14]}  Kxf5 {[%clk 0:00:08]} 41. Rd5+ {[%clk 0:00:14]}  Kg6 {[%clk 0:00:07]} 42. Nxc5 {[%clk 0:00:15]}  Bb7 {[%clk 0:00:05]} 43. Rd6+ {[%clk 0:00:14]}  Kf5 {[%clk 0:00:05]} 44. Kd4 {[%clk 0:00:08]}  Bxc5+ {[%clk 0:00:04]} 45. Kxc5 {[%clk 0:00:07]}  e3 {[%clk 0:00:05]} 46. Rd8 {[%clk 0:00:08]}  e2 {[%clk 0:00:04]} 47. Re8 {[%clk 0:00:08]}  Be4 {[%clk 0:00:05]} 48. Kd4 {[%clk 0:00:07]}  e1=Q {[%clk 0:00:04]} 49. Re5+ {[%clk 0:00:08]}  Kg4 {[%clk 0:00:04]} 50. Rxe4 {[%clk 0:00:09]}  Qd2+ {[%clk 0:00:04]} 51. Ke5 {[%clk 0:00:09]}  Kxg3 {[%clk 0:00:04]} 52. f5 {[%clk 0:00:08]}  Qc3+ {[%clk 0:00:04]} 53. Kd5 {[%clk 0:00:08]}  Qd3+ {[%clk 0:00:04]} 54. Rd4 {[%clk 0:00:08]}  Qxf5+ {[%clk 0:00:05]} 55. Kc6 {[%clk 0:00:08]}  Qc8+ {[%clk 0:00:05]} 56. Kd5 {[%clk 0:00:08]}  Qd7+ {[%clk 0:00:05]} 57. Kc5 {[%clk 0:00:07]}  Qc7+ {[%clk 0:00:05]} 58. Kd5 {[%clk 0:00:07]}  Qf7+ {[%clk 0:00:05]} 59. Kc5 {[%clk 0:00:06]}  Qe7+ {[%clk 0:00:06]} 60. Kd5 {[%clk 0:00:05]}  g5 {[%clk 0:00:06]} 61. hxg5 {[%clk 0:00:04]}  Qxg5+ {[%clk 0:00:07]} 62. Kc6 {[%clk 0:00:04]}  Qf6+ {[%clk 0:00:06]} 63. Rd6 {[%clk 0:00:04]}  Qf3+ {[%clk 0:00:07]} 64. Rd5 {[%clk 0:00:00]}  h4 {[%clk 0:00:06]} 0-1


[Site "https://www.chess.com"]

[Event "Titled Tuesday Blitz May 16 Late 2023"]
[White "Alexikov, Alexander"]
[Black "chess123456s"]
[WhiteFideId "14103958"]
[WhiteElo "2186"]
[BlackElo "2577"]
[Result "1-0"]
[Round "11"]
[TimeControl "180+2"]
[Date "2023.05.16"]
[WhiteClock "0:00:14"]
[BlackClock "0:00:02"]

1. e4 {[%clk 0:02:56]}  e5 {[%clk 0:03:00]} 2. Nf3 {[%clk 0:02:54]}  Nc6 {[%clk 0:03:00]} 3. c3 {[%clk 0:02:54]}  d5 {[%clk 0:03:00]} 4. Qa4 {[%clk 0:02:52]}  f6 {[%clk 0:03:00]} 5. Bb5 {[%clk 0:02:50]}  Ne7 {[%clk 0:02:53]} 6. exd5 {[%clk 0:02:50]}  Qxd5 {[%clk 0:02:54]} 7. d4 {[%clk 0:02:49]}  exd4 {[%clk 0:02:48]} 8. cxd4 {[%clk 0:02:49]}  Bd7 {[%clk 0:02:40]} 9. Nc3 {[%clk 0:02:47]}  Qh5 {[%clk 0:02:39]} 10. Bf4 {[%clk 0:02:19]}  O-O-O {[%clk 0:02:27]} 11. O-O {[%clk 0:02:10]}  Bg4 {[%clk 0:02:19]} 12. d5 {[%clk 0:01:58]}  Bxf3 {[%clk 0:02:17]} 13. gxf3 {[%clk 0:01:55]}  Nxd5 {[%clk 0:02:16]} 14. Bxc6 {[%clk 0:01:43]}  Nxf4 {[%clk 0:02:10]} 15. Bxb7+ {[%clk 0:01:42]}  Kxb7 {[%clk 0:02:09]} 16. Qxf4 {[%clk 0:01:39]}  Bd6 {[%clk 0:02:06]} 17. Qe4+ {[%clk 0:01:36]}  Kb8 {[%clk 0:02:03]} 18. h4 {[%clk 0:01:34]}  f5 {[%clk 0:01:53]} 19. Qc4 {[%clk 0:01:27]}  Qxf3 {[%clk 0:01:52]} 20. Rfd1 {[%clk 0:01:08]}  Qg4+ {[%clk 0:00:47]} 21. Qxg4 {[%clk 0:01:06]}  fxg4 {[%clk 0:00:48]} 22. Rd5 {[%clk 0:01:03]}  Rhf8 {[%clk 0:00:40]} 23. Rg5 {[%clk 0:01:00]}  g6 {[%clk 0:00:30]} 24. Rd1 {[%clk 0:00:56]}  Rf4 {[%clk 0:00:25]} 25. Kg2 {[%clk 0:00:48]}  Rdf8 {[%clk 0:00:23]} 26. Rd2 {[%clk 0:00:42]}  Be7 {[%clk 0:00:22]} 27. Rb5+ {[%clk 0:00:37]}  Kc8 {[%clk 0:00:19]} 28. Nd5 {[%clk 0:00:36]}  Re4 {[%clk 0:00:18]} 29. Ra5 {[%clk 0:00:32]}  Bxh4 {[%clk 0:00:11]} 30. Rxa7 {[%clk 0:00:31]}  Rc4 {[%clk 0:00:11]} 31. Ra8+ {[%clk 0:00:28]}  Kb7 {[%clk 0:00:10]} 32. Rxf8 {[%clk 0:00:27]}  c6 {[%clk 0:00:07]} 33. Ne3 {[%clk 0:00:24]}  Rc1 {[%clk 0:00:06]} 34. Rf7+ {[%clk 0:00:24]}  Kb6 {[%clk 0:00:06]} 35. Rxh7 {[%clk 0:00:23]}  Bg5 {[%clk 0:00:07]} 36. Rg7 {[%clk 0:00:21]}  g3 {[%clk 0:00:04]} 37. Kxg3 {[%clk 0:00:20]}  Rg1+ {[%clk 0:00:03]} 38. Kf3 {[%clk 0:00:20]}  Bf6 {[%clk 0:00:03]} 39. Rf7 {[%clk 0:00:19]}  Be5 {[%clk 0:00:03]} 40. Rc2 {[%clk 0:00:18]}  Ka6 {[%clk 0:00:02]} 41. Ke4 {[%clk 0:00:17]}  Bd6 {[%clk 0:00:02]} 42. Rf6 {[%clk 0:00:17]}  Bb4 {[%clk 0:00:01]} 43. Rfxc6+ {[%clk 0:00:15]}  Kb7 {[%clk 0:00:02]} 44. R6c4 {[%clk 0:00:15]}  Bd6 {[%clk 0:00:02]} 45. a3 {[%clk 0:00:15]}  Re1 {[%clk 0:00:01]} 46. Rd4 {[%clk 0:00:15]}  Bc7 {[%clk 0:00:01]} 47. Rd7 {[%clk 0:00:15]}  Kb8 {[%clk 0:00:02]} 48. Rdxc7 {[%clk 0:00:14]}  g5 {[%clk 0:00:01]} 49. Rg7 {[%clk 0:00:14]}  g4 {[%clk 0:00:01]} 50. Rd2 {[%clk 0:00:14]}  g3 {[%clk 0:00:02]} 51. Rd8# {[%clk 0:00:14]} 1-0


[Site "https://www.chess.com"]

[Event "Titled Tuesday Blitz May 16 Late 2023"]
[White "Cooklev, Steven"]
[Black "Janaszak, Dawid"]
[WhiteFideId "2050552"]
[BlackFideId "1119206"]
[WhiteElo "2299"]
[BlackElo "2220"]
[Result "0-1"]
[Round "11"]
[TimeControl "180+2"]
[Date "2023.05.16"]
[WhiteClock "0:00:11"]
[BlackClock "0:01:36"]

1. e4 {[%clk 0:03:00]}  e5 {[%clk 0:02:55]} 2. Bc4 {[%clk 0:03:00]}  b5 {[%clk 0:02:53]} 3. Bxb5 {[%clk 0:03:00]}  Bb7 {[%clk 0:02:53]} 4. d3 {[%clk 0:02:59]}  Nf6 {[%clk 0:02:52]} 5. Nf3 {[%clk 0:02:59]}  Bc5 {[%clk 0:02:51]} 6. Nxe5 {[%clk 0:02:49]}  Qe7 {[%clk 0:02:49]} 7. Nf3 {[%clk 0:02:43]}  Nc6 {[%clk 0:02:49]} 8. Nc3 {[%clk 0:02:37]}  O-O {[%clk 0:02:38]} 9. O-O {[%clk 0:02:27]}  Nd4 {[%clk 0:02:38]} 10. Nxd4 {[%clk 0:02:22]}  Bxd4 {[%clk 0:02:38]} 11. Be3 {[%clk 0:02:22]}  Bxc3 {[%clk 0:02:37]} 12. bxc3 {[%clk 0:02:22]}  Qe5 {[%clk 0:02:37]} 13. Rb1 {[%clk 0:02:12]}  Qxc3 {[%clk 0:02:37]} 14. Qd2 {[%clk 0:01:50]}  Qa3 {[%clk 0:02:28]} 15. Bd4 {[%clk 0:01:45]}  Qd6 {[%clk 0:02:21]} 16. Bxf6 {[%clk 0:01:40]}  Qxf6 {[%clk 0:02:19]} 17. Bxd7 {[%clk 0:01:40]}  Rab8 {[%clk 0:02:19]} 18. Rb3 {[%clk 0:01:18]}  Rfd8 {[%clk 0:02:19]} 19. Rfb1 {[%clk 0:01:13]}  Rxd7 {[%clk 0:02:19]} 20. h3 {[%clk 0:00:39]}  c5 {[%clk 0:02:19]} 21. Qa5 {[%clk 0:00:36]}  a6 {[%clk 0:02:06]} 22. Qxc5 {[%clk 0:00:34]}  Rc8 {[%clk 0:01:55]} 23. Qe3 {[%clk 0:00:33]}  Bc6 {[%clk 0:01:53]} 24. Rb6 {[%clk 0:00:32]}  Qc3 {[%clk 0:01:51]} 25. Rxa6 {[%clk 0:00:31]}  h6 {[%clk 0:01:49]} 26. Qe2 {[%clk 0:00:20]}  Rdc7 {[%clk 0:01:46]} 27. Rab6 {[%clk 0:00:20]}  Bd7 {[%clk 0:01:45]} 28. Rb8 {[%clk 0:00:20]}  Be6 {[%clk 0:01:43]} 29. Rxc8+ {[%clk 0:00:20]}  Rxc8 {[%clk 0:01:44]} 30. a4 {[%clk 0:00:18]}  Ba2 {[%clk 0:01:43]} 31. Rc1 {[%clk 0:00:17]}  Qa3 {[%clk 0:01:42]} 32. Qd2 {[%clk 0:00:17]}  Qxa4 {[%clk 0:01:41]} 33. f4 {[%clk 0:00:17]}  Rd8 {[%clk 0:01:38]} 34. Qe3 {[%clk 0:00:16]}  Qa3 {[%clk 0:01:37]} 35. c4 {[%clk 0:00:16]}  Rxd3 {[%clk 0:01:36]} 36. Qf2 {[%clk 0:00:11]}  Qxc1+ {[%clk 0:01:36]} 0-1


[Site "https://www.chess.com"]

[Event "Titled Tuesday Blitz May 16 Late 2023"]
[White "De Souza, Cristiano Gomes"]
[Black "Martin Barcelo, Carles"]
[WhiteFideId "2151758"]
[BlackFideId "24561444"]
[WhiteElo "2068"]
[BlackElo "2089"]
[Result "0-1"]
[Round "11"]
[TimeControl "180+2"]
[Date "2023.05.16"]
[WhiteClock "0:00:15"]
[BlackClock "0:01:46"]

1. d4 {[%clk 0:00:22]}  Nf6 {[%clk 0:02:57]} 2. c4 {[%clk 0:00:22]}  e6 {[%clk 0:02:48]} 3. Nf3 {[%clk 0:00:22]}  b6 {[%clk 0:02:48]} 4. g3 {[%clk 0:00:22]}  Bb7 {[%clk 0:02:48]} 5. Bg2 {[%clk 0:00:22]}  Bb4+ {[%clk 0:02:48]} 6. Bd2 {[%clk 0:00:21]}  Be7 {[%clk 0:02:46]} 7. O-O {[%clk 0:00:21]}  O-O {[%clk 0:02:47]} 8. Bc3 {[%clk 0:00:22]}  d5 {[%clk 0:02:46]} 9. Nbd2 {[%clk 0:00:22]}  Nbd7 {[%clk 0:02:44]} 10. Ne5 {[%clk 0:00:22]}  Rc8 {[%clk 0:02:40]} 11. Nxd7 {[%clk 0:00:21]}  Qxd7 {[%clk 0:02:38]} 12. e4 {[%clk 0:00:22]}  Nxe4 {[%clk 0:02:28]} 13. Nxe4 {[%clk 0:00:22]}  dxe4 {[%clk 0:02:29]} 14. Qe2 {[%clk 0:00:23]}  f5 {[%clk 0:02:21]} 15. Rae1 {[%clk 0:00:21]}  Bf6 {[%clk 0:02:20]} 16. Qd2 {[%clk 0:00:20]}  Rfd8 {[%clk 0:02:19]} 17. Rd1 {[%clk 0:00:18]}  g6 {[%clk 0:02:06]} 18. f3 {[%clk 0:00:18]}  exf3 {[%clk 0:02:05]} 19. Bxf3 {[%clk 0:00:19]}  Bxf3 {[%clk 0:02:05]} 20. Rxf3 {[%clk 0:00:20]}  Qg7 {[%clk 0:02:00]} 21. Rd3 {[%clk 0:00:20]}  Rd7 {[%clk 0:02:00]} 22. d5 {[%clk 0:00:20]}  Bxc3 {[%clk 0:01:58]} 23. bxc3 {[%clk 0:00:20]}  Rcd8 {[%clk 0:01:56]} 24. dxe6 {[%clk 0:00:19]}  Rxd3 {[%clk 0:01:54]} 25. Qxd3 {[%clk 0:00:20]}  Rxd3 {[%clk 0:01:54]} 26. Rxd3 {[%clk 0:00:21]}  Qe7 {[%clk 0:01:50]} 27. Rd7 {[%clk 0:00:20]}  Qxe6 {[%clk 0:01:49]} 28. Rxc7 {[%clk 0:00:15]}  a5 {[%clk 0:01:46]} 0-1


[Site "https://www.chess.com"]

[Event "Titled Tuesday Blitz May 16 Late 2023"]
[White "Georg, Heinz"]
[Black "Kev4444444444"]
[WhiteFideId "4607295"]
[WhiteElo "2317"]
[BlackElo "2165"]
[Result "1-0"]
[Round "11"]
[TimeControl "180+2"]
[Date "2023.05.16"]
[WhiteClock "0:00:12"]
[BlackClock "0:00:07"]

1. c4 {[%clk 0:03:00]}  e6 {[%clk 0:01:11]} 2. Nf3 {[%clk 0:02:59]}  d5 {[%clk 0:01:11]} 3. d4 {[%clk 0:02:58]}  Nf6 {[%clk 0:01:12]} 4. g3 {[%clk 0:02:57]}  Bb4+ {[%clk 0:01:10]} 5. Bd2 {[%clk 0:02:53]}  Be7 {[%clk 0:01:10]} 6. b3 {[%clk 0:02:44]}  O-O {[%clk 0:01:10]} 7. Bg2 {[%clk 0:02:43]}  c6 {[%clk 0:01:09]} 8. O-O {[%clk 0:02:43]}  b6 {[%clk 0:01:09]} 9. Bc3 {[%clk 0:02:39]}  Nbd7 {[%clk 0:01:09]} 10. Nbd2 {[%clk 0:02:38]}  Bb7 {[%clk 0:01:08]} 11. Qc2 {[%clk 0:02:37]}  c5 {[%clk 0:01:08]} 12. dxc5 {[%clk 0:02:36]}  Nxc5 {[%clk 0:01:08]} 13. Rfd1 {[%clk 0:02:32]}  Nce4 {[%clk 0:01:08]} 14. Bxf6 {[%clk 0:02:10]}  Nxf6 {[%clk 0:01:04]} 15. cxd5 {[%clk 0:02:05]}  exd5 {[%clk 0:01:03]} 16. Nd4 {[%clk 0:01:58]}  Rc8 {[%clk 0:01:02]} 17. Qd3 {[%clk 0:01:53]}  Re8 {[%clk 0:01:00]} 18. N2f3 {[%clk 0:01:52]}  Ba3 {[%clk 0:00:59]} 19. Nc2 {[%clk 0:01:48]}  Bc5 {[%clk 0:00:58]} 20. e3 {[%clk 0:01:38]}  Ne4 {[%clk 0:00:58]} 21. b4 {[%clk 0:01:32]}  Be7 {[%clk 0:00:58]} 22. a3 {[%clk 0:01:19]}  Bf6 {[%clk 0:00:58]} 23. Ncd4 {[%clk 0:01:19]}  Rc3 {[%clk 0:00:58]} 24. Qe2 {[%clk 0:01:18]}  Qd7 {[%clk 0:00:54]} 25. Rdc1 {[%clk 0:01:14]}  Rec8 {[%clk 0:00:53]} 26. Rxc3 {[%clk 0:01:13]}  Nxc3 {[%clk 0:00:53]} 27. Qb2 {[%clk 0:01:01]}  Na4 {[%clk 0:00:43]} 28. Qd2 {[%clk 0:00:58]}  b5 {[%clk 0:00:37]} 29. Rc1 {[%clk 0:00:55]}  Nb6 {[%clk 0:00:37]} 30. Rxc8+ {[%clk 0:00:54]}  Bxc8 {[%clk 0:00:38]} 31. Bf1 {[%clk 0:00:52]}  Nc4 {[%clk 0:00:38]} 32. Bxc4 {[%clk 0:00:52]}  dxc4 {[%clk 0:00:37]} 33. Qc2 {[%clk 0:00:37]}  Bb7 {[%clk 0:00:36]} 34. Kf1 {[%clk 0:00:29]}  Qd5 {[%clk 0:00:33]} 35. Ke2 {[%clk 0:00:25]}  Qh5 {[%clk 0:00:27]} 36. Qf5 {[%clk 0:00:21]}  Qxh2 {[%clk 0:00:21]} 37. Nxh2 {[%clk 0:00:18]}  Bxd4 {[%clk 0:00:16]} 38. exd4 {[%clk 0:00:17]}  h6 {[%clk 0:00:15]} 39. Qxb5 {[%clk 0:00:17]}  Be4 {[%clk 0:00:15]} 40. Qxc4 {[%clk 0:00:16]}  Bg6 {[%clk 0:00:15]} 41. Nf3 {[%clk 0:00:15]}  Bh5 {[%clk 0:00:15]} 42. Ke3 {[%clk 0:00:15]}  Bg6 {[%clk 0:00:15]} 43. Ne5 {[%clk 0:00:15]}  Bb1 {[%clk 0:00:15]} 44. Qxf7+ {[%clk 0:00:15]}  Kh7 {[%clk 0:00:16]} 45. Nd7 {[%clk 0:00:14]}  Kh8 {[%clk 0:00:15]} 46. Nf8 {[%clk 0:00:12]}  Bc2 {[%clk 0:00:07]} 47. Ne6 {[%clk 0:00:12]} 1-0


[Site "https://www.chess.com"]

[Event "Titled Tuesday Blitz May 16 Late 2023"]
[White "Estrada Nieto, Julian"]
[Black "Slavin, Alexey"]
[WhiteFideId "5101018"]
[BlackFideId "24104388"]
[WhiteElo "2161"]
[BlackElo "2264"]
[Result "1-0"]
[Round "11"]
[TimeControl "180+2"]
[Date "2023.05.16"]
[WhiteClock "0:01:10"]
[BlackClock "0:01:20"]

1. e4 {[%clk 0:03:00]}  Nc6 {[%clk 0:02:59]} 2. Nf3 {[%clk 0:03:00]}  d6 {[%clk 0:02:58]} 3. d4 {[%clk 0:03:00]}  Nf6 {[%clk 0:02:59]} 4. Nc3 {[%clk 0:03:00]}  Bg4 {[%clk 0:02:59]} 5. Bb5 {[%clk 0:03:00]}  a6 {[%clk 0:02:59]} 6. Bxc6+ {[%clk 0:03:01]}  bxc6 {[%clk 0:02:59]} 7. h3 {[%clk 0:03:01]}  Bc8 {[%clk 0:02:59]} 8. O-O {[%clk 0:03:00]}  e6 {[%clk 0:02:59]} 9. Bg5 {[%clk 0:02:55]}  Be7 {[%clk 0:02:59]} 10. Qe2 {[%clk 0:02:53]}  a5 {[%clk 0:02:58]} 11. Rfd1 {[%clk 0:02:52]}  h6 {[%clk 0:02:57]} 12. Bh4 {[%clk 0:02:51]}  O-O {[%clk 0:02:57]} 13. e5 {[%clk 0:02:43]}  Nd5 {[%clk 0:02:56]} 14. Bxe7 {[%clk 0:02:41]}  Qxe7 {[%clk 0:02:54]} 15. Ne4 {[%clk 0:02:41]}  Ba6 {[%clk 0:02:48]} 16. Qd2 {[%clk 0:02:40]}  a4 {[%clk 0:02:37]} 17. b3 {[%clk 0:02:35]}  Nb6 {[%clk 0:02:32]} 18. Qb4 {[%clk 0:02:13]}  Rfd8 {[%clk 0:02:19]} 19. exd6 {[%clk 0:02:10]}  Qf8 {[%clk 0:02:17]} 20. c4 {[%clk 0:02:05]}  Rdb8 {[%clk 0:02:02]} 21. Qa3 {[%clk 0:01:54]}  axb3 {[%clk 0:01:47]} 22. axb3 {[%clk 0:01:43]}  Bxc4 {[%clk 0:01:47]} 23. Qc5 {[%clk 0:01:20]}  Bd5 {[%clk 0:01:38]} 24. dxc7 {[%clk 0:01:15]}  Rb7 {[%clk 0:01:28]} 25. Rxa8 {[%clk 0:01:10]}  Nxa8 {[%clk 0:01:28]} 26. Qxf8+ {[%clk 0:01:09]}  Kxf8 {[%clk 0:01:20]} 27. c8=Q+ {[%clk 0:01:10]} 1-0


[Site "https://www.chess.com"]